bitfinex/quotes_BTCUSD_20251230
["timestamp","ask_amount","ask_price","bid_price","bid_amount"]
[1767068884318,0.01143236,87471.0,87462.0,0.01144]
[1767068886171,0.01143249,87470.0,87462.0,0.01144]
[1767068886367,0.01143236,87471.0,87462.0,0.01144]
[1767068886913,0.01143249,87470.0,87462.0,0.01144]
[1767068887117,0.01143236,87471.0,87462.0,0.01144]
[1767068887940,0.01143222,87472.0,87462.0,0.01144]
[1767068888138,0.01071924,87471.0,87462.0,0.01144]
[1767068888364,0.01143222,87472.0,87462.0,0.01144]
[1767068888541,0.01072053,87471.0,87462.0,0.01144]
[1767068888756,0.01143222,87472.0,87462.0,0.01144]
[1767068888956,0.01072053,87471.0,87462.0,0.01144]
[1767068889157,0.01143222,87472.0,87462.0,0.01144]
[1767068889368,0.01143236,87471.0,87462.0,0.01144]
[1767068891032,0.01143249,87470.0,87460.0,0.0118381]
[1767068891239,0.01143236,87471.0,87460.0,0.0118381]
[1767068891922,0.01143301,87466.0,87460.0,0.0003981]
[1767068892196,0.01143249,87470.0,87460.0,0.0003981]
[1767068892417,0.01071908,87469.0,87460.0,0.0003981]
[1767068892563,0.01143196,87474.0,87461.0,0.01143366]
[1767068892761,0.01071866,87473.0,87462.0,0.01143353]
[1767068893130,0.01071866,87472.0,87463.0,0.0114334]
[1767068893262,0.01071866,87471.0,87462.0,0.01143353]
[1767068893614,0.01143183,87475.0,87462.0,0.01143353]
[1767068893789,0.0221502,87474.0,87462.0,0.01143353]
[1767068893989,0.01143222,87472.0,87460.0,0.0003981]
[1767068895088,0.01143236,87471.0,87460.0,0.0003981]
[1767068895534,0.01143222,87472.0,87460.0,0.01183189]
[1767068895728,0.01143236,87471.0,87460.0,0.0003981]
[1767068896409,0.01143262,87469.0,87460.0,1e-07]
[1767068896609,0.01143301,87466.0,87460.0,1e-07]
[1767068896788,0.01143314,87465.0,87460.0,1e-07]
[1767068896947,0.01143301,87466.0,87460.0,1e-07]
[1767068897151,0.01143314,87465.0,87460.0,1e-07]
[1767068900345,0.01143288,87467.0,87460.0,1e-07]
[1767068900772,0.54119755,87470.0,87460.0,1e-07]
[1767068901008,0.01143275,87468.0,87460.0,1e-07]
[1767068901173,0.01143262,87469.0,87460.0,1e-07]
[1767068901381,0.54119755,87470.0,87460.0,1e-07]
[1767068901552,0.02214839,87469.0,87460.0,1e-07]
[1767068901760,0.52976506,87470.0,87460.0,1e-07]
[1767068901940,0.01071577,87469.0,87460.0,1e-07]
[1767068902139,0.54119755,87470.0,87460.0,1e-07]
[1767068902353,0.01071565,87469.0,87460.0,1e-07]
[1767068902541,0.52976506,87470.0,87460.0,1e-07]
[1767068902749,0.01071565,87469.0,87460.0,1e-07]
[1767068902950,0.52976506,87470.0,87460.0,1e-07]
[1767068903148,0.52976506,87470.0,87460.0,0.01143389]
[1767068903149,0.01071565,87469.0,87460.0,0.01143389]
[1767068903352,0.51832506,87470.0,87461.0,0.01143366]
[1767068903551,0.51832506,87470.0,87460.0,0.01143389]
[1767068903749,0.01144,87472.0,87460.0,0.01143389]
[1767068903954,0.51832506,87470.0,87460.0,0.01143389]
[1767068904689,0.51832506,87470.0,87461.0,0.01143366]
[1767068905589,0.02287222,87472.0,87460.0,0.01143389]
[1767068905812,0.51832506,87470.0,87461.0,0.01143366]
[1767068906152,0.51832506,87470.0,87460.0,1e-07]
[1767068906361,0.51832506,87470.0,87460.0,0.01143389]
[1767068906679,0.52975755,87470.0,87460.0,1e-07]
[1767068906882,0.01143262,87469.0,87460.0,1e-07]
[1767068908550,0.01143275,87468.0,87460.0,1e-07]
[1767068909101,0.01143288,87467.0,87460.0,1e-07]
[1767068909295,0.01143301,87466.0,87460.0,1e-07]
[1767068909714,0.01143301,87466.0,87456.0,0.0115942]
[1767068909715,0.01143327,87464.0,87456.0,0.00292966]
[1767068909923,0.01143314,87465.0,87456.0,0.00299561]
[1767068910581,0.01163301,87466.0,87456.0,0.00299561]
[1767068911217,0.01143314,87465.0,87456.0,0.00299561]
[1767068911446,0.0002,87466.0,87456.0,0.00299561]
[1767068912720,0.01163301,87466.0,87456.0,0.00299561]
[1767068914959,0.01163301,87466.0,87464.0,0.05]
[1767068915158,0.01163301,87466.0,87464.0,0.049451]
[1767068915512,0.0002,87466.0,87464.0,0.049451]
[1767068920704,0.06860117,87472.0,87464.0,0.049451]
[1767068920705,0.01144,87472.0,87464.0,0.049451]
[1767068920865,0.0107245,87471.0,87464.0,0.049451]
[1767068921070,0.01144,87472.0,87464.0,0.049451]
[1767068921071,0.0107245,87470.0,87464.0,0.049451]
[1767068921281,0.01144,87472.0,87464.0,0.049451]
[1767068921494,0.02215748,87471.0,87464.0,0.049451]
[1767068921690,0.01072512,87470.0,87464.0,0.049451]
[1767068921900,0.01072512,87469.0,87464.0,0.049451]
[1767068922512,0.01143288,87467.0,87464.0,0.049451]
[1767068924543,0.01143275,87468.0,87464.0,0.049451]
[1767068924720,0.01072627,87467.0,87464.0,0.049451]
[1767068924922,0.01143262,87469.0,87464.0,0.049451]
[1767068925144,0.02215902,87468.0,87464.0,0.049451]
[1767068925344,0.01072627,87467.0,87464.0,0.049451]
[1767068926803,0.02215915,87467.0,87464.0,0.049451]
[1767068926942,0.01143288,87467.0,87464.0,0.049451]
[1767068934836,0.01143288,87467.0,87464.0,1e-06]
[1767068935329,0.05716506,87466.0,87464.0,1e-06]
[1767068935532,0.01143327,87464.0,87456.0,0.00299561]
[1767068936094,0.01143327,87464.0,87431.0,0.10276116]
[1767068936095,0.06860703,87455.0,87439.0,0.01143654]
[1767068936318,0.51832506,87450.0,87442.0,0.01143615]
[1767068936522,0.51832506,87452.0,87441.0,0.01143628]
[1767068936713,0.51832506,87452.0,87424.0,0.18201455]
[1767068936714,0.01143497,87451.0,87437.0,0.01815505]
[1767068936915,0.52905273,87450.0,87437.0,0.01824131]
[1767068937120,0.51832506,87450.0,87442.0,0.11977427]
[1767068937338,0.51832506,87452.0,87442.0,0.11977427]
[1767068937505,0.5297599,87452.0,87442.0,0.11977427]
[1767068938236,0.0114351,87450.0,87437.0,0.02296306]
[1767068938438,0.52976016,87450.0,87437.0,0.02296306]
[1767068938652,0.01143523,87449.0,87437.0,0.02296306]
[1767068938850,0.52976016,87450.0,87437.0,0.02296306]
[1767068939054,0.52976016,87450.0,87438.0,0.01143667]
[1767068939557,0.51832506,87450.0,87437.0,0.01152626]
[1767068939907,0.52976016,87450.0,87437.0,0.02296306]
[1767068940374,0.01143523,87449.0,87437.0,0.02296306]
[1767068941074,0.52976016,87450.0,87438.0,0.01143667]
[1767068941296,0.51832506,87450.0,87437.0,0.08014702]
[1767068941693,0.51777506,87450.0,87440.0,0.01143641]
[1767068942508,0.51777506,87450.0,87439.0,0.01143654]
[1767068943828,0.51777506,87450.0,87440.0,0.01143641]
[1767068945709,0.51777506,87450.0,87441.0,0.01143628]
[1767068946116,0.51777506,87450.0,87440.0,0.01143641]
[1767068947250,0.51777506,87450.0,87438.0,0.01143667]
[1767068948360,0.51777506,87450.0,87440.0,0.01143641]
[1767068948507,0.51777506,87450.0,87439.0,0.01143654]
[1767068949353,0.51777506,87450.0,87439.0,0.01110456]
[1767068950124,0.52921016,87450.0,87438.0,0.01143667]
[1767068950422,0.51777506,87450.0,87439.0,0.01143654]
[1767068950616,0.52921016,87450.0,87438.0,0.01143667]
[1767068951341,0.51777506,87450.0,87438.0,0.01143667]
[1767068951890,0.51832506,87450.0,87439.0,0.01143654]
[1767068952116,0.51832506,87450.0,87440.0,0.01143641]
[1767068952324,0.51832506,87450.0,87441.0,0.01143628]
[1767068952660,0.01143471,87453.0,87441.0,0.01143628]
[1767068952859,0.01144,87457.0,87444.0,0.01143589]
[1767068953061,0.02287419,87457.0,87443.0,0.01143602]
[1767068953263,0.01144,87457.0,87445.0,0.01143575]
[1767068953483,0.02287419,87457.0,87444.0,0.01143589]
[1767068954041,0.01143432,87456.0,87444.0,0.01143589]
[1767068955083,0.02287419,87457.0,87445.0,0.01143575]
[1767068955305,0.01143432,87456.0,87444.0,0.01143589]
[1767068955652,0.01143445,87455.0,87441.0,0.01143628]
[1767068955848,0.01143458,87454.0,87441.0,0.01143628]
[1767068956425,0.01143458,87454.0,87442.0,0.01143615]
[1767068956794,0.01143458,87454.0,87441.0,0.01143628]
[1767068957121,0.01143497,87451.0,87439.0,0.01143654]
[1767068957318,0.52976003,87451.0,87436.0,0.0571845]
[1767068957757,0.52976003,87451.0,87439.0,0.01143654]
[1767068958317,0.51832506,87451.0,87440.0,0.01143641]
[1767068958636,0.01143484,87452.0,87440.0,0.01143641]
[1767068958786,0.01143497,87451.0,87439.0,0.01143654]
[1767068958986,0.01143484,87452.0,87440.0,0.01143641]
[1767068959388,0.01143458,87454.0,87441.0,0.01143628]
[1767068960829,0.01143484,87452.0,87441.0,0.01143628]
[1767068961105,0.01143484,87452.0,87440.0,0.01143641]
[1767068962056,0.01143497,87451.0,87439.0,0.01143654]
[1767068962256,0.01143497,87451.0,87438.0,0.01143667]
[1767068962468,0.01143497,87451.0,87439.0,0.01143654]
[1767068962667,0.01143484,87452.0,87439.0,0.01143654]
[1767068962863,0.05717415,87453.0,87441.0,0.01143628]
[1767068962864,0.01143471,87453.0,87441.0,0.01143628]
[1767068963242,0.01143484,87452.0,87439.0,0.01143654]
[1767068964157,0.01143497,87451.0,87439.0,0.01128876]
[1767068965752,0.01143484,87452.0,87440.0,0.01143641]
[1767068965951,0.01072319,87451.0,87440.0,0.01143641]
[1767068966148,0.01072849,87450.0,87440.0,0.01143641]
[1767068966351,0.01072849,87449.0,87440.0,0.01143641]
[1767068966554,0.01143484,87452.0,87440.0,0.01143641]
[1767068966755,0.01072855,87451.0,87440.0,0.01143641]
[1767068966958,0.01143484,87452.0,87440.0,0.01143641]
[1767068966959,0.01072855,87450.0,87440.0,0.01143641]
[1767068967159,0.01072855,87449.0,87440.0,0.01143641]
[1767068967363,0.01143484,87452.0,87440.0,0.01143641]
[1767068967562,0.01072859,87451.0,87440.0,0.01143641]
[1767068967766,0.01143484,87452.0,87440.0,0.01143641]
[1767068967767,0.01072859,87450.0,87440.0,0.01143641]
[1767068967968,0.01072859,87449.0,87440.0,0.01143641]
[1767068968165,0.01143484,87452.0,87440.0,0.01143641]
[1767068968368,0.01072854,87451.0,87440.0,0.01143641]
[1767068968569,0.01072854,87450.0,87441.0,0.01143628]
[1767068968769,0.01072854,87449.0,87441.0,0.01143628]
[1767068969065,0.01143471,87453.0,87441.0,0.01143628]
[1767068969246,0.01072854,87452.0,87441.0,0.01143628]
[1767068969445,0.14708,87450.0,87437.0,8.626e-05]
[1767068969764,0.01072854,87449.0,87437.0,0.01143706]
[1767068969988,0.01072854,87448.0,87437.0,0.01143706]
[1767068970164,0.01072854,87447.0,87437.0,0.01143706]
[1767068970378,0.01072886,87446.0,87437.0,2.6e-07]
[1767068970581,0.0228751,87450.0,87437.0,2.6e-07]
[1767068970824,0.01143536,87448.0,87437.0,2.6e-07]
[1767068971023,0.01072886,87447.0,87437.0,0.01143706]
[1767068971221,0.01072886,87446.0,87437.0,2.6e-07]
[1767068971379,0.01143523,87449.0,87437.0,0.01143706]
[1767068971723,0.01072852,87448.0,87438.0,0.01143667]
[1767068971923,0.01072852,87447.0,87437.0,0.01143706]
[1767068972225,0.01072852,87446.0,87437.0,2.6e-07]
[1767068972433,0.01143536,87448.0,87437.0,2.6e-07]
[1767068972582,0.02216368,87447.0,87437.0,2.6e-07]
[1767068972795,0.01072819,87446.0,87437.0,2.6e-07]
[1767068972976,0.01143549,87447.0,87437.0,2.6e-07]
[1767068973175,0.01072819,87446.0,87437.0,2.6e-07]
[1767068973376,0.01143549,87447.0,87437.0,2.6e-07]
[1767068973598,0.02216349,87446.0,87437.0,2.6e-07]
[1767068973813,0.01143562,87446.0,87437.0,2.6e-07]
[1767068974273,0.01143549,87447.0,87437.0,2.6e-07]
[1767068974513,0.01072757,87446.0,87437.0,2.6e-07]
[1767068974717,0.01143549,87447.0,87437.0,2.6e-07]
[1767068974914,0.01072757,87446.0,87437.0,2.6e-07]
[1767068975227,0.01143549,87447.0,87437.0,2.6e-07]
[1767068975430,0.01072749,87446.0,87437.0,2.6e-07]
[1767068975644,0.01143549,87447.0,87437.0,2.6e-07]
[1767068975845,0.0107273,87446.0,87437.0,2.6e-07]
[1767068976047,0.01143562,87446.0,87437.0,2.6e-07]
[1767068976269,0.01143549,87447.0,87437.0,2.6e-07]
[1767068976414,0.01072705,87446.0,87437.0,2.6e-07]
[1767068976608,0.01143536,87448.0,87437.0,2.6e-07]
[1767068976848,0.01072705,87447.0,87437.0,2.6e-07]
[1767068977053,0.01072705,87446.0,87437.0,2.6e-07]
[1767068977314,0.01143536,87448.0,87437.0,2.6e-07]
[1767068977559,0.01072682,87447.0,87437.0,2.6e-07]
[1767068977799,0.01072682,87446.0,87437.0,2.6e-07]
[1767068978061,0.01143549,87447.0,87437.0,2.6e-07]
[1767068978262,0.02216244,87446.0,87437.0,2.6e-07]
[1767068978385,0.01143562,87446.0,87437.0,2.6e-07]
[1767068978901,0.01143575,87445.0,87437.0,2.6e-07]
[1767068979384,0.01143562,87446.0,87437.0,2.6e-07]
[1767068981605,0.01143562,87446.0,87437.0,0.00011966]
[1767068982496,0.01143549,87447.0,87437.0,0.00011966]
[1767068982702,0.01143562,87446.0,87437.0,0.00011966]
[1767068983311,0.01143536,87448.0,87437.0,0.00011966]
[1767068983516,0.02216169,87447.0,87437.0,0.00011966]
[1767068983709,0.01143549,87447.0,87437.0,0.00011966]
[1767068984219,0.01143536,87448.0,87437.0,0.00011966]
[1767068984367,0.02216196,87447.0,87437.0,0.00011966]
[1767068984575,0.01143549,87447.0,87437.0,0.00011966]
[1767068984972,0.01143562,87446.0,87437.0,0.00011966]
[1767068986704,0.01143575,87445.0,87437.0,0.00011966]
[1767068987847,0.01143589,87444.0,87437.0,0.00011966]
[1767068988560,0.01143602,87443.0,87437.0,6.6e-07]
[1767068989902,0.01143575,87445.0,87437.0,6.6e-07]
[1767068990217,0.01143589,87444.0,87437.0,6.6e-07]
[1767068992324,0.01143575,87445.0,87437.0,6.6e-07]
[1767068994186,0.01143602,87443.0,87437.0,6.6e-07]
[1767068994392,0.01143589,87444.0,87437.0,6.6e-07]
[1767068994586,0.06861535,87444.0,87437.0,6.6e-07]
[1767068994827,0.01143615,87442.0,87437.0,6.6e-07]
[1767068995005,0.01143628,87441.0,87437.0,6.6e-07]
[1767068995491,0.01143628,87441.0,87436.0,6.6e-07]
[1767068995492,0.1435,87440.0,87436.0,6.6e-07]
[1767068995694,0.1435,87440.0,87433.0,0.01144]
[1767068995897,0.1435,87440.0,87433.0,0.01144273]
[1767068996102,0.1435,87440.0,87433.0,2.73e-06]
[1767068996488,0.1435,87437.0,87433.0,2.73e-06]
[1767068996695,0.01143667,87438.0,87433.0,2.73e-06]
[1767068997345,0.01143641,87440.0,87433.0,2.73e-06]
[1767068997844,0.01143628,87441.0,87433.0,2.73e-06]
[1767068999414,0.01143641,87440.0,87433.0,2.73e-06]
[1767069000015,0.01143641,87440.0,87432.0,4.37e-06]
[1767069000220,0.01143628,87441.0,87432.0,0.00011212]
[1767069000954,0.01143641,87440.0,87432.0,0.00011212]
[1767069001167,0.01143615,87442.0,87432.0,0.00011212]
[1767069001369,0.01144,87443.0,87433.0,0.01143732]
[1767069001543,0.01072744,87442.0,87432.0,0.01154957]
[1767069001791,0.01144,87443.0,87442.0,0.000205]
[1767069001960,0.02216719,87443.0,87442.0,0.000205]
[1767069002158,0.02216719,87443.0,87436.0,0.01143693]
[1767069002359,0.01144,87443.0,87437.0,0.0114368]
[1767069002560,0.01144,87443.0,87436.0,0.01143693]
[1767069003063,0.011235,87443.0,87437.0,0.0114368]
[1767069003461,0.011235,87443.0,87436.0,0.01143693]
[1767069003462,0.01143405,87458.0,87443.0,0.01143602]
[1767069003688,0.0221667,87457.0,87445.0,0.01143575]
[1767069003989,0.0107267,87456.0,87444.0,0.01143589]
[1767069004184,0.0107267,87455.0,87444.0,0.01143589]
[1767069004344,0.0107267,87454.0,87445.0,0.01143575]
[1767069004548,0.0107267,87453.0,87447.0,0.01143549]
[1767069004746,0.00014273,87454.0,87446.0,0.01143562]
[1767069004947,2.73e-06,87454.0,87445.0,0.01143575]
[1767069005170,2.73e-06,87454.0,87447.0,0.01143549]
[1767069005337,2.73e-06,87454.0,87445.0,0.01143575]
[1767069005743,2.73e-06,87454.0,87446.0,0.01143562]
[1767069005967,2.73e-06,87454.0,87445.0,0.01143575]
[1767069006159,2.73e-06,87454.0,87446.0,0.01143562]
[1767069006362,2.73e-06,87454.0,87445.0,0.01143575]
[1767069006582,2.73e-06,87454.0,87446.0,0.01143562]
[1767069007082,2.73e-06,87454.0,87445.0,0.01143575]
[1767069007487,2.73e-06,87454.0,87446.0,0.01143562]
[1767069008786,2.73e-06,87454.0,87447.0,0.01143549]
[1767069009203,2.73e-06,87454.0,87446.0,0.01143562]
[1767069010332,2.73e-06,87454.0,87447.0,0.01143549]
[1767069010531,2.73e-06,87454.0,87449.0,0.01143523]
[1767069010934,2.73e-06,87454.0,87447.0,0.06861294]
[1767069010935,2.73e-06,87454.0,87448.0,0.01143536]
[1767069011094,2.73e-06,87454.0,87449.0,0.01143523]
[1767069011295,2.73e-06,87454.0,87451.0,0.01143497]
[1767069011509,2.73e-06,87454.0,87449.0,0.01143523]
[1767069011729,2.73e-06,87454.0,87447.0,0.01143549]
[1767069012010,2.73e-06,87454.0,87448.0,0.01143536]
[1767069012779,2.73e-06,87454.0,87447.0,0.01143549]
[1767069013396,2.73e-06,87454.0,87446.0,0.01143562]
[1767069013623,2.73e-06,87454.0,87445.0,0.01143575]
[1767069013762,2.73e-06,87454.0,87444.0,0.02287589]
[1767069013947,2.73e-06,87454.0,87445.0,0.01143575]
[1767069014632,2.73e-06,87454.0,87446.0,0.01143562]
[1767069014817,2.73e-06,87454.0,87447.0,0.01143549]
[1767069016750,0.01072155,87453.0,87448.0,0.01143536]
[1767069016934,0.01072155,87452.0,87447.0,0.01143549]
[1767069017148,2.73e-06,87454.0,87447.0,0.01143549]
[1767069017293,0.01072146,87453.0,87447.0,0.01143549]
[1767069017491,0.01072146,87452.0,87447.0,0.01143549]
[1767069017717,2.73e-06,87454.0,87447.0,0.01143549]
[1767069017916,0.01072126,87453.0,87447.0,0.01143549]
[1767069018117,0.01072126,87452.0,87447.0,0.01143549]
[1767069018290,2.73e-06,87454.0,87447.0,0.01143549]
[1767069018644,0.01072101,87453.0,87447.0,0.01143549]
[1767069018849,0.01072101,87452.0,87447.0,0.01143549]
[1767069018992,2.73e-06,87454.0,87447.0,0.01143549]
[1767069019192,0.01072101,87453.0,87447.0,0.01143549]
[1767069019393,2.73e-06,87454.0,87447.0,0.01143549]
[1767069019394,0.01072101,87452.0,87447.0,0.01143549]
[1767069019607,2.73e-06,87454.0,87447.0,0.01143549]
[1767069019809,0.01072079,87453.0,87447.0,0.01143549]
[1767069020011,0.01072079,87452.0,87447.0,0.01143549]
[1767069020206,2.73e-06,87454.0,87447.0,0.01143549]
[1767069020459,0.01072078,87453.0,87446.0,0.01143562]
[1767069020662,2.73e-06,87454.0,87447.0,0.01143549]
[1767069020663,0.01072078,87452.0,87447.0,0.01143549]
[1767069020865,2.73e-06,87454.0,87447.0,0.01143549]
[1767069021031,0.01072061,87453.0,87447.0,0.01143549]
[1767069021232,0.01072061,87452.0,87446.0,0.01143562]
[1767069021434,2.73e-06,87454.0,87447.0,0.01143549]
[1767069021645,0.01072046,87453.0,87447.0,0.01143549]
[1767069021823,0.01072046,87452.0,87447.0,0.01143549]
[1767069022020,2.73e-06,87454.0,87447.0,0.01143549]
[1767069022224,2.73e-06,87454.0,87448.0,0.01143536]
[1767069022536,2.73e-06,87454.0,87446.0,0.01143562]
[1767069022734,2.73e-06,87454.0,87445.0,0.01143575]
[1767069022943,2.73e-06,87454.0,87447.0,0.01143549]
[1767069023498,2.73e-06,87454.0,87446.0,0.01143562]
[1767069023865,2.73e-06,87454.0,87447.0,0.01143549]
[1767069024451,2.73e-06,87454.0,87448.0,0.01143536]
[1767069024841,2.73e-06,87454.0,87447.0,0.01143549]
[1767069025038,2.73e-06,87454.0,87448.0,0.01143536]
[1767069025483,2.73e-06,87454.0,87447.0,0.01143549]
[1767069026304,2.73e-06,87454.0,87448.0,0.01143536]
[1767069026505,2.73e-06,87454.0,87449.0,0.01143523]
[1767069026714,2.73e-06,87454.0,87450.0,0.0114351]
[1767069026902,2.73e-06,87454.0,87451.0,0.01143497]
[1767069028471,0.01144,87460.0,87454.0,0.01143458]
[1767069028826,0.01144,87460.0,87451.0,0.01143497]
[1767069029125,0.01144,87460.0,87450.0,0.52981479]
[1767069029321,0.01143353,87462.0,87451.0,0.01143497]
[1767069029487,0.01144,87461.0,87450.0,0.52981479]
[1767069029884,0.02287366,87461.0,87449.0,0.01143523]
[1767069030090,0.01143392,87459.0,87450.0,0.51837969]
[1767069030285,0.01143379,87460.0,87450.0,0.51837969]
[1767069030621,0.52981969,87460.0,87448.0,0.01143536]
[1767069030799,0.01144,87460.0,87449.0,0.01143523]
[1767069031607,0.01144,87460.0,87450.0,0.0114351]
[1767069032591,0.02287379,87460.0,87448.0,0.01143536]
[1767069032786,0.02287379,87460.0,87449.0,0.01143523]
[1767069033224,0.01144,87460.0,87449.0,0.01143523]
[1767069033641,0.01144,87460.0,87450.0,0.52981479]
[1767069034017,0.01072619,87459.0,87451.0,0.01143497]
[1767069034253,0.01072619,87458.0,87451.0,0.01143497]
[1767069034456,0.01072619,87457.0,87451.0,0.01143497]
[1767069034629,0.01072619,87456.0,87450.0,0.52981479]
[1767069034818,0.01072619,87455.0,87449.0,0.01143523]
[1767069035013,0.01072619,87454.0,87447.0,0.52981518]
[1767069035218,0.01143392,87459.0,87447.0,0.52981518]
[1767069035416,0.02216027,87458.0,87449.0,0.51837969]
[1767069035641,0.01072622,87457.0,87449.0,0.51837969]
[1767069035894,0.01072622,87456.0,87449.0,0.51837969]
[1767069036128,0.01072622,87455.0,87449.0,0.51837969]
[1767069036324,0.01072622,87454.0,87449.0,0.52981492]
[1767069036479,0.01144,87460.0,87449.0,0.52981492]
[1767069036679,0.01144,87460.0,87449.0,0.51837969]
[1767069036680,0.01072613,87459.0,87449.0,0.51837969]
[1767069036860,0.01072613,87458.0,87449.0,0.51837969]
[1767069037076,0.01072613,87457.0,87449.0,0.51837969]
[1767069037276,0.01072613,87456.0,87449.0,0.51837969]
[1767069037458,0.01072613,87455.0,87449.0,0.51837969]
[1767069037661,0.01072613,87454.0,87449.0,0.52981492]
[1767069038031,0.01144,87460.0,87449.0,0.52981492]
[1767069038240,0.01072608,87459.0,87450.0,0.0114351]
[1767069038561,0.01072608,87458.0,87451.0,0.01143497]
[1767069038776,0.01072608,87457.0,87450.0,0.0114351]
[1767069038976,0.01072608,87456.0,87450.0,0.0114351]
[1767069039183,0.01072608,87455.0,87450.0,0.0114351]
[1767069039412,0.01072608,87454.0,87450.0,0.0114351]
[1767069039648,0.01144,87460.0,87450.0,0.0114351]
[1767069039855,0.01072607,87459.0,87454.0,0.000549]
[1767069040063,0.01072607,87458.0,87450.0,0.51837969]
[1767069040249,0.01072607,87457.0,87450.0,0.0114351]
[1767069040487,0.01072607,87456.0,87450.0,0.0114351]
[1767069040697,0.01072607,87455.0,87450.0,0.0114351]
[1767069040903,0.01144,87460.0,87450.0,0.0114351]
[1767069040904,0.01072607,87459.0,87450.0,0.0114351]
[1767069041089,0.01072607,87458.0,87450.0,0.0114351]
[1767069041303,0.01072607,87457.0,87451.0,0.00995894]
[1767069041503,0.01072607,87456.0,87450.0,0.0114351]
[1767069041809,0.01072607,87455.0,87451.0,0.01143497]
[1767069041963,0.01072607,87454.0,87451.0,0.01143497]
[1767069042254,0.01144,87460.0,87452.0,0.01143484]
[1767069042444,0.01144,87460.0,87454.0,0.01143458]
[1767069042768,0.01144,87460.0,87453.0,0.01143471]
[1767069044455,0.01144,87460.0,87454.0,0.01143458]
[1767069044870,0.01144,87460.0,87453.0,0.01143471]
[1767069045277,0.01144,87460.0,87454.0,0.01143458]
[1767069045477,0.01144,87460.0,87453.0,0.01143471]
[1767069046341,0.01144,87460.0,87454.0,0.01143458]
[1767069046775,0.01144,87460.0,87453.0,0.01143471]
[1767069047312,0.01144,87460.0,87454.0,0.01143458]
[1767069048250,0.01144,87460.0,87455.0,0.01143445]
[1767069048455,0.01144,87460.0,87454.0,0.01143458]
[1767069048813,0.01144,87460.0,87452.0,0.01143484]
[1767069049433,0.01144,87460.0,87451.0,0.01143497]
[1767069049877,0.01144,87460.0,87448.0,0.06861154]
[1767069050087,0.01144,87460.0,87450.0,0.52981479]
[1767069050245,0.01144,87460.0,87450.0,0.51837969]
[1767069050682,0.01144,87460.0,87450.0,0.52981479]
[1767069052497,0.01144,87460.0,87450.0,0.51837969]
[1767069052707,0.02287379,87460.0,87450.0,0.51837969]
[1767069053310,0.01144,87460.0,87450.0,0.51837969]
[1767069054233,0.01072746,87459.0,87450.0,0.52981479]
[1767069054439,0.01072746,87458.0,87450.0,0.52981479]
[1767069054738,0.01072746,87457.0,87450.0,0.0114351]
[1767069054930,0.000549,87450.0,87448.0,0.01143536]
[1767069055148,0.000549,87450.0,87444.0,0.01144]
[1767069055339,0.01143432,87456.0,87444.0,0.01144]
[1767069055487,0.0107288,87455.0,87444.0,0.08005521]
[1767069055684,0.0107288,87454.0,87446.0,0.01143562]
[1767069055906,0.01143405,87458.0,87446.0,0.01143562]
[1767069056271,0.52981969,87460.0,87449.0,0.01143523]
[1767069056822,0.52981969,87460.0,87450.0,0.0114351]
[1767069057158,0.52981969,87460.0,87449.0,0.01143523]
[1767069057438,0.52981969,87460.0,87450.0,0.0114351]
[1767069057839,0.52981969,87460.0,87448.0,0.01143536]
[1767069057840,0.54125348,87460.0,87448.0,0.01143536]
[1767069058476,0.52981969,87460.0,87449.0,0.01143523]
[1767069058680,0.54125348,87460.0,87446.0,0.01143562]
[1767069058883,0.02287379,87460.0,87450.0,0.51837969]
[1767069059084,0.02287379,87460.0,87446.0,0.01143562]
[1767069059085,0.01143405,87458.0,87446.0,0.01143562]
[1767069059264,0.01143405,87458.0,87445.0,0.01143575]
[1767069059470,0.01143432,87456.0,87443.0,0.01143602]
[1767069059665,0.01143432,87456.0,87442.0,0.05718045]
[1767069059666,0.01143445,87455.0,87442.0,0.01143615]
[1767069059865,0.01143432,87456.0,87444.0,0.02287589]
[1767069060072,0.01143445,87455.0,87444.0,0.01144]
[1767069060277,0.01143432,87456.0,87444.0,0.01144]
[1767069060495,0.01143419,87457.0,87445.0,0.01143575]
[1767069060687,0.01144,87460.0,87448.0,0.01143536]
[1767069060925,0.02287379,87460.0,87450.0,0.51837969]
[1767069061134,0.01143392,87459.0,87446.0,0.01143562]
[1767069061571,0.01143392,87459.0,87447.0,0.01143549]
[1767069061775,0.01143392,87459.0,87446.0,0.01143562]
[1767069061985,0.01143405,87458.0,87446.0,0.01143562]
[1767069062591,0.01143392,87459.0,87447.0,0.01143549]
[1767069063489,0.01143392,87459.0,87448.0,0.01143536]
[1767069063662,0.52981969,87460.0,87450.0,0.0114351]
[1767069064660,0.52981969,87460.0,87445.0,0.06861433]
[1767069064864,0.54125348,87460.0,87448.0,0.01143536]
[1767069065066,0.01143392,87459.0,87447.0,0.01143549]
[1767069065278,0.52981969,87460.0,87449.0,0.01143523]
[1767069065568,0.01143392,87459.0,87445.0,0.06861433]
[1767069066509,0.54125348,87460.0,87448.0,0.01143536]
[1767069066737,0.52981969,87460.0,87449.0,0.01143523]
[1767069067318,0.52981969,87460.0,87451.0,0.01143497]
[1767069067713,0.52981969,87460.0,87450.0,0.0114351]
[1767069068018,0.01072963,87459.0,87450.0,0.0114351]
[1767069068223,0.01072963,87458.0,87451.0,0.01143497]
[1767069068386,0.01072963,87457.0,87450.0,0.0114351]
[1767069068584,0.000549,87450.0,87446.0,0.02287562]
[1767069068770,0.54125348,87460.0,87447.0,0.01143549]
[1767069068972,0.01072966,87459.0,87447.0,0.01143549]
[1767069069224,0.01072966,87458.0,87448.0,0.01143536]
[1767069069424,0.01072966,87457.0,87448.0,0.01143536]
[1767069069740,0.01072966,87456.0,87446.0,0.02287562]
[1767069069937,0.01072966,87455.0,87446.0,0.02287562]
[1767069070090,0.01072966,87454.0,87446.0,0.02287562]
[1767069070290,0.01143392,87459.0,87447.0,0.01143549]
[1767069070490,0.02216367,87458.0,87446.0,0.02287562]
[1767069070743,0.02216381,87457.0,87446.0,0.01144]
[1767069070944,0.02216381,87457.0,87372.0,0.05800846]
[1767069070945,0.01198462,87446.0,87432.0,0.0116923]
[1767069071155,0.01198462,87446.0,87433.0,0.01144]
[1767069071356,0.52981571,87443.0,87433.0,0.01144]
[1767069071504,0.01143589,87444.0,87433.0,0.01144]
[1767069071700,0.01143575,87445.0,87433.0,0.01144]
[1767069071900,0.01143575,87445.0,87433.0,0.02287732]
[1767069072241,0.01143589,87444.0,87433.0,0.01144]
[1767069072670,0.01143602,87443.0,87433.0,0.01144]
[1767069073075,0.01143589,87444.0,87433.0,0.01144]
[1767069074706,0.01143602,87443.0,87433.0,0.01144]
[1767069075143,0.000549,87433.0,87432.0,0.00025485]
[1767069075548,0.01143641,87440.0,87432.0,0.00025485]
[1767069075750,0.01143628,87441.0,87432.0,0.00025485]
[1767069075922,0.01143654,87439.0,87432.0,0.00025485]
[1767069076133,0.01143654,87439.0,87432.0,8.5e-07]
[1767069076331,0.01143641,87440.0,87432.0,8.5e-07]
[1767069077005,0.01143654,87439.0,87432.0,8.5e-07]
[1767069077999,0.01143667,87438.0,87432.0,8.5e-07]
[1767069078397,0.0114368,87437.0,87432.0,8.5e-07]
[1767069078558,0.01143667,87438.0,87432.0,8.5e-07]